[Event "LAT-ch 2020"]
[Site "Riga"]
[Date "2020.08.24"]
[Round "1.1"]
[White "Kantans, Toms"]
[Black "Rasa, Gints"]
[Result "1-0"]
[ECO "B30"]
[WhiteElo "2499"]
[BlackElo "2054"]
[Annotator "ChessBase"]
[PlyCount "59"]
[EventDate "2020.08.24"]
[EventType "swiss"]
[EventCountry "LAT"]
[SourceTitle "playchess.com"]
[Source "ChessBase"]
[SourceQuality "1"]
[TimeControl "5400+30"]

1. e4 {[%emt 0:00:00]} c5 {[%emt 0:00:00]} 2. Nf3 {[%emt 0:00:00]} Nc6 {[%emt 0:00:00]} 3. Bb5 {[%emt 0:00:00]} Nf6 {[%emt 0:00:00]} 4. Qe2 {[%emt 0:04:12]} Qc7 {[%emt 0:05:25]} 5. e5 {[%emt 0:02:30]} Nd5 {[%emt 0:00:36]} 6. O-O {[%emt 0:07:56]} e6 {[%emt 0:00:59]} 7. c3 {[%emt 0:01:17]} a6 {[%emt 0:05:35]} 8. Bc4 {[%emt 0:01:38]} Nf4 {[%emt 0:01:54]} 9. Qe3 {[%emt 0:06:21]} Ng6 {[%emt 0:00:07]} 10. d4 {[%emt 0:02:48]} cxd4 {[%emt 0:01:51]} 11. cxd4 {[%emt 0:00:06]} Ncxe5 {[%emt 0:01:08]} 12. Nxe5 {[%emt 0:00:29]} Nxe5 {[%emt 0:00:07]} 13. dxe5 {[%emt 0:08:56]} Qxc4 {[%emt 0:00:06]} 14. b3 {[%emt 0:02:00]} Qc5 {[%emt 0:03:36]} 15. Qg3 {[%emt 0:02:00]} d6 {[%emt 0:17:38]} 16. Bb2 {[%emt 0:00:11]} Qc2 {[%emt 0:15:07]} 17. Ba3 {[%emt 0:01:03]} dxe5 {[%emt 0:00:24]} 18. Bxf8 {[%emt 0:03:33]} Rxf8 {[%emt 0:02:58]} 19. Nc3 {[%emt 0:12:16]} f6 {[%emt 0:13:46]} 20. Rfd1 {[%emt 0:04:00]} Kf7 {[%emt 0:04:10]} 21. Qe3 {[%emt 0:10:49]} Qg6 {[%emt 0:04:17]} 22. Qb6 {[%emt 0:02:46]} e4 {[%emt 0:02:24]} 23. Rac1 {[%emt 0:06:24]} e5 {[%emt 0:00:22]} 24. Nd5 {[%emt 0:00:42]} Qg5 {[%emt 0:01:55]} 25. h4 {[%emt 0:06:54]} Qxh4 {[%emt 0:01:38]} 26. Rc7+ {[%emt 0:01:16]} Kg6 {[%emt 0:06:21]} 27. Ne7+ {[%emt 0:00:11]} Kg5 {[%emt 0:00:39]} 28. Nxc8 {[%emt 0:01:19]} Raxc8 {[%emt 0:00:02]} 29. Rxg7+ {[%emt 0:00:09]} Kf5 {[%emt 0:03:20]} 30. g4+ {[%emt 0:00:31]} 1-0

[Event "LAT-ch 2020"]
[Site "Riga"]
[Date "2020.08.24"]
[Round "1.2"]
[White "Gudovskis, Konstantins"]
[Black "Starostits, Ilmars"]
[Result "0-1"]
[ECO "B33"]
[WhiteElo "2047"]
[BlackElo "2484"]
[Annotator "ChessBase"]
[PlyCount "66"]
[EventDate "2020.08.24"]
[EventType "swiss"]
[EventCountry "LAT"]
[SourceTitle "playchess.com"]
[Source "ChessBase"]
[SourceQuality "1"]
[TimeControl "5400+30"]

1. e4 {[%emt 0:00:00]} c5 {[%emt 0:00:00]} 2. Nf3 {[%emt 0:00:00]} Nc6 {[%emt 0:00:00]} 3. d4 {[%emt 0:00:00]} cxd4 {[%emt 0:00:00]} 4. Nxd4 {[%emt 0:00:00]} Qb6 {[%emt 0:00:00]} 5. Nb3 {[%emt 0:00:27]} Nf6 {[%emt 0:00:12]} 6. Nc3 {[%emt 0:00:28]} e6 {[%emt 0:00:06]} 7. Be3 {[%emt 0:00:19]} Qc7 {[%emt 0:00:15]} 8. Bd3 {[%emt 0:02:10]} Bb4 {[%emt 0:00:06]} 9. O-O {[%emt 0:01:10]} Bxc3 {[%emt 0:00:26]} 10. bxc3 {[%emt 0:00:00]} O-O {[%emt 0:00:00]} 11. f4 {[%emt 0:06:54]} d6 {[%emt 0:00:36]} 12. c4 {[%emt 0:13:41]} b6 {[%emt 0:01:15]} 13. Qf3 {[%emt 0:07:30]} e5 {[%emt 0:04:07]} 14. f5 {[%emt 0:00:28]} a5 {[%emt 0:01:15]} 15. g4 {[%emt 0:01:59]} a4 {[%emt 0:00:19]} 16. g5 {[%emt 0:02:43]} Nd7 {[%emt 0:01:39]} 17. Nd2 {[%emt 0:01:17]} g6 {[%emt 0:08:26]} 18. f6 {[%emt 0:06:56]} Nc5 {[%emt 0:00:41]} 19. Kf2 {[%emt 0:07:16]} Nb4 {[%emt 0:03:41]} 20. Ke2 {[%emt 0:01:47]} b5 {[%emt 0:05:17]} 21. h4 {[%emt 0:13:49]} bxc4 {[%emt 0:01:22]} 22. Bxc4 {[%emt 0:01:37]} Be6 {[%emt 0:00:56]} 23. Rfc1 {[%emt 0:07:36]} Nxe4 {[%emt 0:02:51]} 24. Qxe4 {[%emt 0:02:40]} d5 {[%emt 0:00:07]} 25. Bxd5 {[%emt 0:03:49]} Nxd5 {[%emt 0:00:04]} 26. c4 {[%emt 0:00:09]} Nxe3 {[%emt 0:00:09]} 27. Qxe3 {[%emt 0:00:07]} Rad8 {[%emt 0:00:10]} 28. h5 {[%emt 0:05:20]} e4 {[%emt 0:00:41]} 29. hxg6 {[%emt 0:05:32]} Qh2+ {[%emt 0:00:31]} 30. Ke1 {[%emt 0:00:05]} Rxd2 {[%emt 0:02:04]} 31. gxh7+ {[%emt 0:01:04]} Kh8 {[%emt 0:00:03]} 32. g6 {[%emt 0:00:23]} fxg6 {[%emt 0:00:03]} 33. f7 {[%emt 0:00:27]} Rg2 {[%emt 0:00:07]} 0-1

[Event "LAT-ch 2020"]
[Site "Riga"]
[Date "2020.08.24"]
[Round "1.3"]
[White "Sveshnikov, Vladimir"]
[Black "Kolesnikovs, Ivans"]
[Result "1/2-1/2"]
[ECO "C01"]
[WhiteElo "2426"]
[BlackElo "2014"]
[Annotator "ChessBase"]
[PlyCount "74"]
[EventDate "2020.08.24"]
[EventType "swiss"]
[EventCountry "LAT"]
[SourceTitle "playchess.com"]
[Source "ChessBase"]
[SourceQuality "1"]
[TimeControl "5400+30"]

1. e4 {[%emt 0:00:32]} e6 {[%emt 0:00:03]} 2. d4 {[%emt 0:00:06]} d5 {[%emt 0:00:03]} 3. Nc3 {[%emt 0:00:05]} Bb4 {[%emt 0:00:04]} 4. exd5 {[%emt 0:00:04]} exd5 {[%emt 0:00:48]} 5. Bd3 {[%emt 0:00:05]} Nf6 {[%emt 0:00:29]} 6. Nf3 {[%emt 0:05:34]} Bg4 {[%emt 0:04:20]} 7. h3 {[%emt 0:02:34]} Bh5 {[%emt 0:01:14]} 8. O-O {[%emt 0:00:57]} O-O {[%emt 0:00:38]} 9. Bg5 {[%emt 0:01:05]} c6 {[%emt 0:01:51]} 10. g4 {[%emt 0:00:02]} Bg6 {[%emt 0:00:13]} 11. Ne5 {[%emt 0:01:25]} Bxd3 {[%emt 0:02:36]} 12. Qxd3 {[%emt 0:01:13]} Bxc3 {[%emt 0:00:47]} 13. bxc3 {[%emt 0:00:26]} Qd6 {[%emt 0:01:14]} 14. Rfe1 {[%emt 0:28:08]} Re8 {[%emt 0:24:51]} 15. Bxf6 {[%emt 0:01:53]} Qxf6 {[%emt 0:01:09]} 16. Re3 {[%emt 0:00:06]} Re7 {[%emt 0:10:19]} 17. Rae1 {[%emt 0:02:34]} g6 {[%emt 0:01:43]} 18. Nxg6 {[%emt 0:13:05]} Rxe3 {[%emt 0:00:58]} 19. Rxe3 {[%emt 0:01:46]} hxg6 {[%emt 0:02:16]} 20. Re8+ {[%emt 0:00:08]} Kg7 {[%emt 0:00:53]} 21. Qg3 {[%emt 0:00:57]} g5 {[%emt 0:02:29]} 22. Rxb8 {[%emt 0:00:09]} Rxb8 {[%emt 0:00:12]} 23. Qxb8 {[%emt 0:00:02]} Qf3 {[%emt 0:02:36]} 24. Qe5+ {[%emt 0:08:53]} f6 {[%emt 0:02:44]} 25. Qg3 {[%emt 0:10:48]} Qd1+ {[%emt 0:02:32]} 26. Kg2 {[%emt 0:00:01]} Qxc2 {[%emt 0:00:11]} 27. Qc7+ {[%emt 0:00:07]} Kg6 {[%emt 0:00:28]} 28. Qxb7 {[%emt 0:01:00]} Qe4+ {[%emt 0:10:11]} 29. Kh2 {[%emt 0:03:11]} Qc2 {[%emt 0:02:09]} 30. Kg1 {[%emt 0:00:51]} Qxa2 {[%emt 0:02:45]} 31. Qxc6 {[%emt 0:00:11]} a5 {[%emt 0:02:31]} 32. Qe8+ {[%emt 0:01:02]} Kg7 {[%emt 0:00:30]} 33. Qe7+ {[%emt 0:00:08]} Kg6 {[%emt 0:01:02]} 34. Qf8 {[%emt 0:05:39]} Qb1+ {[%emt 0:04:15]} 35. Kh2 {[%emt 0:00:21]} Qc2 {[%emt 0:00:57]} 36. Qg8+ {[%emt 0:00:17]} Kh6 {[%emt 0:00:02]} 37. Qh8+ {[%emt 0:00:14]} Kg6 {[%emt 0:00:06]} 1/2-1/2

[Event "LAT-ch 2020"]
[Site "Riga"]
[Date "2020.08.24"]
[Round "1.4"]
[White "Safonovs, Romans"]
[Black "Lanka, Zigurds"]
[Result "0-1"]
[ECO "A37"]
[WhiteElo "1955"]
[BlackElo "2391"]
[Annotator "ChessBase"]
[PlyCount "58"]
[EventDate "2020.08.24"]
[EventType "swiss"]
[EventCountry "LAT"]
[SourceTitle "playchess.com"]
[Source "ChessBase"]
[SourceQuality "1"]
[TimeControl "5400+30"]

1. c4 {[%emt 0:00:00]} g6 {[%emt 0:00:00]} 2. Nc3 {[%emt 0:00:00]} c5 {[%emt 0:00:00]} 3. g3 {[%emt 0:00:01]} Bg7 {[%emt 0:00:06]} 4. Bg2 {[%emt 0:00:05]} Nc6 {[%emt 0:00:13]} 5. Nf3 {[%emt 0:00:29]} d6 {[%emt 0:00:14]} 6. O-O {[%emt 0:00:23]} e5 {[%emt 0:00:10]} 7. d3 {[%emt 0:03:35]} Nge7 {[%emt 0:00:20]} 8. Rb1 {[%emt 0:07:10]} O-O {[%emt 0:00:54]} 9. a3 {[%emt 0:00:30]} a5 {[%emt 0:00:22]} 10. Bd2 {[%emt 0:02:07]} Rb8 {[%emt 0:01:37]} 11. e3 {[%emt 0:05:00]} h6 {[%emt 0:01:34]} 12. Nb5 {[%emt 0:07:09]} Be6 {[%emt 0:03:21]} 13. Qc2 {[%emt 0:14:37]} Qd7 {[%emt 0:02:04]} 14. b3 {[%emt 0:09:24]} Rbd8 {[%emt 0:06:27]} 15. Bc3 {[%emt 0:01:12]} Bh3 {[%emt 0:02:45]} 16. Rbd1 {[%emt 0:05:06]} Bxg2 {[%emt 0:01:22]} 17. Kxg2 {[%emt 0:00:04]} f5 {[%emt 0:00:43]} 18. Qb2 {[%emt 0:04:25]} g5 {[%emt 0:00:58]} 19. d4 {[%emt 0:08:33]} cxd4 {[%emt 0:00:33]} 20. exd4 {[%emt 0:00:17]} e4 {[%emt 0:00:22]} 21. Ne1 {[%emt 0:07:34]} d5 {[%emt 0:00:51]} 22. f3 {[%emt 0:03:34]} f4 {[%emt 0:08:44]} 23. Qe2 {[%emt 0:05:15]} Nf5 {[%emt 0:01:30]} 24. gxf4 {[%emt 0:07:19]} gxf4 {[%emt 0:00:28]} 25. Bd2 {[%emt 0:02:25]} Ncxd4 {[%emt 0:00:41]} 26. Nxd4 {[%emt 0:00:17]} Nxd4 {[%emt 0:00:12]} 27. Qf2 {[%emt 0:00:23]} e3 {[%emt 0:00:13]} 28. Bxe3 {[%emt 0:00:09]} fxe3 {[%emt 0:00:09]} 29. Qxe3 {[%emt 0:00:01]} dxc4 {[%emt 0:00:22]} 0-1

[Event "LAT-ch 2020"]
[Site "Riga"]
[Date "2020.08.25"]
[Round "2.1"]
[White "Levchenkov, Vitaly"]
[Black "Kantans, Toms"]
[Result "0-1"]
[ECO "B51"]
[WhiteElo "2209"]
[BlackElo "2499"]
[Annotator "ChessBase"]
[PlyCount "68"]
[EventDate "2020.08.24"]
[EventType "swiss"]
[EventCountry "LAT"]
[SourceTitle "playchess.com"]
[Source "ChessBase"]
[SourceQuality "1"]
[TimeControl "5400+30"]

1. e4 {[%emt 0:00:00]} c5 {[%emt 0:05:32]} 2. Nf3 {[%emt 0:00:23]} d6 {[%emt 0:00:09]} 3. Bb5+ {[%emt 0:00:44]} Nd7 {[%emt 0:00:09]} 4. O-O {[%emt 0:00:28]} a6 {[%emt 0:01:13]} 5. Bxd7+ {[%emt 0:00:18]} Bxd7 {[%emt 0:00:05]} 6. d4 {[%emt 0:00:45]} cxd4 {[%emt 0:00:08]} 7. Nxd4 {[%emt 0:00:23]} Nf6 {[%emt 0:06:28]} 8. Re1 {[%emt 0:02:00]} e5 {[%emt 0:02:18]} 9. Nb3 {[%emt 0:00:38]} h6 {[%emt 0:00:10]} 10. Nc3 {[%emt 0:00:43]} Rc8 {[%emt 0:01:11]} 11. a4 {[%emt 0:01:43]} Be7 {[%emt 0:05:26]} 12. a5 {[%emt 0:00:40]} Qc7 {[%emt 0:01:25]} 13. Be3 {[%emt 0:00:34]} Qc6 {[%emt 0:04:03]} 14. f3 {[%emt 0:06:40]} O-O {[%emt 0:01:36]} 15. Re2 {[%emt 0:01:49]} Be6 {[%emt 0:01:08]} 16. Rd2 {[%emt 0:00:07]} Rfd8 {[%emt 0:03:10]} 17. Bb6 {[%emt 0:08:14]} Re8 {[%emt 0:01:58]} 18. Be3 {[%emt 0:02:03]} Bf8 {[%emt 0:04:01]} 19. Bb6 {[%emt 0:03:00]} Nd7 {[%emt 0:02:42]} 20. Na4 {[%emt 0:00:24]} f5 {[%emt 0:04:59]} 21. exf5 {[%emt 0:01:22]} Bxf5 {[%emt 0:00:05]} 22. c3 {[%emt 0:00:31]} Nc5 {[%emt 0:03:37]} 23. Bxc5 {[%emt 0:01:30]} dxc5 {[%emt 0:02:07]} 24. Nb6 {[%emt 0:00:22]} Rc7 {[%emt 0:01:06]} 25. c4 {[%emt 0:00:46]} e4 {[%emt 0:02:04]} 26. fxe4 {[%emt 0:01:33]} Bxe4 {[%emt 0:00:34]} 27. Qg4 {[%emt 0:03:23]} Rf7 {[%emt 0:01:58]} 28. Rad1 {[%emt 0:05:37]} Re5 {[%emt 0:06:11]} 29. h4 {[%emt 0:01:51]} Bf5 {[%emt 0:01:08]} 30. Qg3 {[%emt 0:04:07]} Qe6 {[%emt 0:01:06]} 31. Nd5 {[%emt 0:01:23]} Re4 {[%emt 0:01:29]} 32. Rc1 {[%emt 0:03:03]} Bd6 {[%emt 0:02:00]} 33. Qf2 {[%emt 0:01:32]} Bg6 {[%emt 0:01:24]} 34. Nxc5 {[%emt 0:01:21]} Rxf2 {[%emt 0:00:18]} 0-1

[Event "LAT-ch 2020"]
[Site "Riga"]
[Date "2020.08.25"]
[Round "2.2"]
[White "Starostits, Ilmars"]
[Black "Kretainis, Kristaps"]
[Result "1/2-1/2"]
[ECO "D11"]
[WhiteElo "2484"]
[BlackElo "2252"]
[Annotator "ChessBase"]
[PlyCount "136"]
[EventDate "2020.08.24"]
[EventType "swiss"]
[EventCountry "LAT"]
[SourceTitle "playchess.com"]
[Source "ChessBase"]
[SourceQuality "1"]
[TimeControl "5400+30"]

1. d4 {[%emt 0:01:33]} d5 {[%emt 0:00:00]} 2. Nf3 {[%emt 0:00:08]} Nf6 {[%emt 0:00:00]} 3. Bf4 {[%emt 0:00:26]} c6 {[%emt 0:00:10]} 4. e3 {[%emt 0:00:30]} Bg4 {[%emt 0:00:25]} 5. c4 {[%emt 0:00:19]} Bxf3 {[%emt 0:02:43]} 6. gxf3 {[%emt 0:00:28]} e6 {[%emt 0:01:51]} 7. Qb3 {[%emt 0:00:35]} Qb6 {[%emt 0:00:04]} 8. c5 {[%emt 0:00:16]} Qxb3 {[%emt 0:00:02]} 9. axb3 {[%emt 0:00:06]} a6 {[%emt 0:01:12]} 10. b4 {[%emt 0:05:05]} Nh5 {[%emt 0:01:12]} 11. Bc7 {[%emt 0:00:37]} Kd7 {[%emt 0:01:38]} 12. Be5 {[%emt 0:00:25]} f6 {[%emt 0:01:02]} 13. Bg3 {[%emt 0:00:03]} Nxg3 {[%emt 0:00:08]} 14. hxg3 {[%emt 0:00:04]} Kc7 {[%emt 0:00:34]} 15. Nc3 {[%emt 0:00:29]} h6 {[%emt 0:05:13]} 16. Bh3 {[%emt 0:02:26]} f5 {[%emt 0:00:13]} 17. g4 {[%emt 0:00:05]} f4 {[%emt 0:01:00]} 18. exf4 {[%emt 0:00:18]} g5 {[%emt 0:00:03]} 19. O-O-O {[%emt 0:00:56]} gxf4 {[%emt 0:02:02]} 20. Rhe1 {[%emt 0:01:03]} Be7 {[%emt 0:02:09]} 21. Rxe6 {[%emt 0:00:10]} Bg5 {[%emt 0:00:02]} 22. Bf1 {[%emt 0:02:34]} Nd7 {[%emt 0:00:40]} 23. Bd3 {[%emt 0:01:04]} Rae8 {[%emt 0:01:24]} 24. Rde1 {[%emt 0:00:37]} Kd8 {[%emt 0:01:31]} 25. Bf5 {[%emt 0:04:17]} Rxe6 {[%emt 0:00:56]} 26. Rxe6 {[%emt 0:00:10]} Nf6 {[%emt 0:00:21]} 27. Na4 {[%emt 0:04:45]} Re8 {[%emt 0:01:26]} 28. Rd6+ {[%emt 0:00:14]} Kc7 {[%emt 0:00:06]} 29. Nb6 {[%emt 0:02:00]} Rd8 {[%emt 0:01:33]} 30. Rxd8 {[%emt 0:04:15]} Kxd8 {[%emt 0:00:06]} 31. Kd2 {[%emt 0:00:04]} Kc7 {[%emt 0:01:02]} 32. Ke2 {[%emt 0:00:10]} Kd8 {[%emt 0:01:05]} 33. Nc8 {[%emt 0:01:05]} Ne8 {[%emt 0:00:06]} 34. Nb6 {[%emt 0:01:52]} Nf6 {[%emt 0:00:08]} 35. Na4 {[%emt 0:00:05]} Ne8 {[%emt 0:00:49]} 36. Nc3 {[%emt 0:00:34]} Nc7 {[%emt 0:00:23]} 37. Kd3 {[%emt 0:01:28]} Nb5 {[%emt 0:00:20]} 38. Ne2 {[%emt 0:00:44]} Kc7 {[%emt 0:00:12]} 39. Kc2 {[%emt 0:00:51]} Na7 {[%emt 0:00:25]} 40. Bd3 {[%emt 0:01:05]} Nb5 {[%emt 0:00:27]} 41. Kd1 {[%emt 0:00:29]} Kd8 {[%emt 0:01:31]} 42. Ke1 {[%emt 0:00:42]} Nc7 {[%emt 0:00:44]} 43. Kd1 {[%emt 0:00:31]} Ne6 {[%emt 0:00:17]} 44. Bf5 {[%emt 0:00:23]} Nc7 {[%emt 0:00:06]} 45. Kc2 {[%emt 0:01:06]} Nb5 {[%emt 0:00:15]} 46. Bd3 {[%emt 0:00:04]} Kc7 {[%emt 0:01:07]} 47. Bxb5 {[%emt 0:00:27]} axb5 {[%emt 0:00:05]} 48. Nc1 {[%emt 0:00:04]} Kd8 {[%emt 0:00:32]} 49. Nd3 {[%emt 0:00:06]} Ke7 {[%emt 0:00:27]} 50. Ne5 {[%emt 0:00:37]} Ke6 {[%emt 0:00:10]} 51. Kd3 {[%emt 0:01:13]} Ke7 {[%emt 0:00:23]} 52. Ke2 {[%emt 0:00:10]} Ke6 {[%emt 0:00:13]} 53. Nd3 {[%emt 0:00:05]} Ke7 {[%emt 0:00:14]} 54. Ne1 {[%emt 0:00:50]} Ke6 {[%emt 0:01:47]} 55. Ng2 {[%emt 0:00:06]} Ke7 {[%emt 0:00:17]} 56. Kf1 {[%emt 0:00:06]} Kd7 {[%emt 0:00:45]} 57. Kg1 {[%emt 0:00:04]} Ke7 {[%emt 0:00:10]} 58. Kh2 {[%emt 0:00:04]} Kd7 {[%emt 0:00:37]} 59. Kh3 {[%emt 0:00:06]} Ke7 {[%emt 0:00:47]} 60. Nh4 {[%emt 0:00:09]} Ke6 {[%emt 0:00:07]} 61. Nf5 {[%emt 0:00:13]} Kd7 {[%emt 0:00:21]} 62. Nd6 {[%emt 0:01:18]} Kc7 {[%emt 0:00:25]} 63. b3 {[%emt 0:02:15]} Kb8 {[%emt 0:00:20]} 64. Kg2 {[%emt 0:00:38]} Kc7 {[%emt 0:00:08]} 65. Kh2 {[%emt 0:00:09]} Kb8 {[%emt 0:00:06]} 66. Nf7 {[%emt 0:00:09]} Kc7 {[%emt 0:00:06]} 67. Kh3 {[%emt 0:00:06]} Kd7 {[%emt 0:00:09]} 68. Nxg5 {[%emt 0:00:05]} hxg5 {[%emt 0:00:04]} 1/2-1/2

[Event "LAT-ch 2020"]
[Site "Riga"]
[Date "2020.08.25"]
[Round "2.3"]
[White "Lanka, Zigurds"]
[Black "Golubovskis, Maksims"]
[Result "1-0"]
[ECO "B90"]
[WhiteElo "2391"]
[BlackElo "2234"]
[Annotator "ChessBase"]
[PlyCount "57"]
[EventDate "2020.08.24"]
[EventType "swiss"]
[EventCountry "LAT"]
[SourceTitle "playchess.com"]
[Source "ChessBase"]
[SourceQuality "1"]
[TimeControl "5400+30"]

1. e4 {[%emt 0:00:00]} c5 {[%emt 0:00:00]} 2. Nf3 {[%emt 0:00:00]} d6 {[%emt 0:00:00]} 3. d4 {[%emt 0:00:00]} cxd4 {[%emt 0:00:00]} 4. Nxd4 {[%emt 0:00:00]} Nf6 {[%emt 0:00:00]} 5. Nc3 {[%emt 0:00:10]} a6 {[%emt 0:00:10]} 6. Be3 {[%emt 0:00:07]} e5 {[%emt 0:00:04]} 7. Nb3 {[%emt 0:00:09]} Be7 {[%emt 0:00:04]} 8. h3 {[%emt 0:00:09]} h6 {[%emt 0:00:04]} 9. Qf3 {[%emt 0:02:44]} b5 {[%emt 0:00:07]} 10. O-O-O {[%emt 0:01:50]} Qc7 {[%emt 0:00:24]} 11. Kb1 {[%emt 0:02:36]} Bb7 {[%emt 0:00:29]} 12. Nd5 {[%emt 0:07:35]} Bxd5 {[%emt 0:05:12]} 13. exd5 {[%emt 0:00:08]} Nbd7 {[%emt 0:00:10]} 14. g4 {[%emt 0:04:39]} Rc8 {[%emt 0:02:13]} 15. Bd3 {[%emt 0:06:41]} Nb6 {[%emt 0:02:26]} 16. Bf5 {[%emt 0:01:05]} Rb8 {[%emt 0:02:55]} 17. Bxb6 {[%emt 0:07:22]} Qxb6 {[%emt 0:00:22]} 18. Nd2 {[%emt 0:00:48]} Qc5 {[%emt 0:17:54]} 19. h4 {[%emt 0:06:07]} Qxd5 {[%emt 0:33:36]} 20. Ne4 {[%emt 0:01:15]} Qa8 {[%emt 0:00:41]} 21. Nxf6+ {[%emt 0:03:13]} gxf6 {[%emt 0:01:22]} 22. Be4 {[%emt 0:02:24]} Qa7 {[%emt 0:00:05]} 23. g5 {[%emt 0:01:03]} fxg5 {[%emt 0:05:15]} 24. hxg5 {[%emt 0:00:34]} Bxg5 {[%emt 0:00:43]} 25. Rxd6 {[%emt 0:00:59]} Rd8 {[%emt 0:10:17]} 26. Qa3 {[%emt 0:06:11]} O-O {[%emt 0:05:55]} 27. Rdxh6 {[%emt 0:02:30]} Bxh6 {[%emt 0:05:50]} 28. Qg3+ {[%emt 0:00:33]} Bg7 {[%emt 0:00:05]} 29. Rh8+ {[%emt 0:00:26]} 1-0

[Event "LAT-ch 2020"]
[Site "Riga"]
[Date "2020.08.25"]
[Round "2.4"]
[White "Bekasovs, Rihards"]
[Black "Berzinsh, Roland"]
[Result "1/2-1/2"]
[ECO "B13"]
[WhiteElo "2177"]
[BlackElo "2378"]
[Annotator "ChessBase"]
[PlyCount "57"]
[EventDate "2020.08.24"]
[EventType "swiss"]
[EventCountry "LAT"]
[SourceTitle "playchess.com"]
[Source "ChessBase"]
[SourceQuality "1"]
[TimeControl "5400+30"]

1. d4 {[%emt 0:00:00]} d5 {[%emt 0:02:58]} 2. Nf3 {[%emt 0:00:00]} c5 {[%emt 0:00:58]} 3. e3 {[%emt 0:01:22]} cxd4 {[%emt 0:03:14]} 4. exd4 {[%emt 0:00:49]} Nf6 {[%emt 0:00:19]} 5. Bd3 {[%emt 0:05:48]} g6 {[%emt 0:05:44]} 6. O-O {[%emt 0:01:26]} Nc6 {[%emt 0:00:19]} 7. c3 {[%emt 0:00:19]} Bg7 {[%emt 0:00:34]} 8. Bf4 {[%emt 0:02:26]} O-O {[%emt 0:02:50]} 9. Nbd2 {[%emt 0:01:45]} Nh5 {[%emt 0:01:38]} 10. Bg3 {[%emt 0:09:39]} Nxg3 {[%emt 0:04:50]} 11. hxg3 {[%emt 0:00:06]} Qd6 {[%emt 0:02:00]} 12. Re1 {[%emt 0:01:49]} Bd7 {[%emt 0:02:34]} 13. Qe2 {[%emt 0:05:13]} Rae8 {[%emt 0:06:16]} 14. Ne5 {[%emt 0:02:47]} Bc8 {[%emt 0:01:29]} 15. f4 {[%emt 0:07:48]} f6 {[%emt 0:03:24]} 16. Nxg6 {[%emt 0:12:25]} hxg6 {[%emt 0:02:10]} 17. Bxg6 {[%emt 0:00:04]} Nd8 {[%emt 0:02:03]} 18. Qh5 {[%emt 0:01:37]} Rf7 {[%emt 0:00:08]} 19. Nf3 {[%emt 0:03:00]} e6 {[%emt 0:03:35]} 20. Qh7+ {[%emt 0:08:15]} Kf8 {[%emt 0:00:22]} 21. Bxf7 {[%emt 0:00:03]} Nxf7 {[%emt 0:03:09]} 22. Nh4 {[%emt 0:03:11]} Nh6 {[%emt 0:00:23]} 23. Rf1 {[%emt 0:12:06]} Qb6 {[%emt 0:13:54]} 24. Rf2 {[%emt 0:06:27]} Nf5 {[%emt 0:12:44]} 25. Ng6+ {[%emt 0:01:05]} Kf7 {[%emt 0:00:18]} 26. g4 {[%emt 0:00:08]} Nd6 {[%emt 0:00:33]} 27. Ne5+ {[%emt 0:02:52]} Kf8 {[%emt 0:02:54]} 28. Ng6+ {[%emt 0:00:03]} Kf7 {[%emt 0:00:07]} 29. Ne5+ {[%emt 0:00:05]} 1/2-1/2

[Event "LAT-ch 2020"]
[Site "Riga"]
[Date "2020.08.25"]
[Round "3.1"]
[White "Kantans, Toms"]
[Black "Lanka, Zigurds"]
[Result "1-0"]
[ECO "B28"]
[WhiteElo "2499"]
[BlackElo "2391"]
[Annotator "ChessBase"]
[PlyCount "87"]
[EventDate "2020.08.24"]
[EventType "swiss"]
[EventCountry "LAT"]
[SourceTitle "playchess.com"]
[Source "ChessBase"]
[SourceQuality "1"]
[TimeControl "5400+30"]

1. e4 {[%emt 0:00:00]} c5 {[%emt 0:00:00]} 2. Nf3 {[%emt 0:00:00]} a6 {[%emt 0:00:00]} 3. c4 {[%emt 0:00:31]} Nc6 {[%emt 0:00:00]} 4. d4 {[%emt 0:00:06]} cxd4 {[%emt 0:00:04]} 5. Nxd4 {[%emt 0:00:06]} e5 {[%emt 0:00:20]} 6. Nc2 {[%emt 0:00:39]} Bc5 {[%emt 0:00:46]} 7. Nc3 {[%emt 0:00:32]} d6 {[%emt 0:00:39]} 8. Be2 {[%emt 0:00:21]} Nf6 {[%emt 0:00:28]} 9. O-O {[%emt 0:00:34]} Be6 {[%emt 0:01:44]} 10. Kh1 {[%emt 0:06:38]} Nd4 {[%emt 0:02:45]} 11. f4 {[%emt 0:01:39]} h6 {[%emt 0:06:11]} 12. b4 {[%emt 0:08:06]} Ba7 {[%emt 0:01:29]} 13. Bb2 {[%emt 0:02:50]} Nxc2 {[%emt 0:11:48]} 14. Qxc2 {[%emt 0:00:07]} Bd4 {[%emt 0:03:23]} 15. Rad1 {[%emt 0:13:49]} Qc7 {[%emt 0:06:09]} 16. Nd5 {[%emt 0:03:39]} Bxd5 {[%emt 0:00:23]} 17. exd5 {[%emt 0:00:08]} Bxb2 {[%emt 0:02:24]} 18. Qxb2 {[%emt 0:04:53]} exf4 {[%emt 0:00:20]} 19. Rxf4 {[%emt 0:01:13]} O-O-O {[%emt 0:01:11]} 20. Bf3 {[%emt 0:04:57]} Rhe8 {[%emt 0:03:11]} 21. c5 {[%emt 0:04:22]} dxc5 {[%emt 0:04:12]} 22. Rc4 {[%emt 0:00:07]} Qe5 {[%emt 0:00:41]} 23. Qf2 {[%emt 0:03:11]} Qe3 {[%emt 0:01:58]} 24. Qg3 {[%emt 0:04:12]} Qe5 {[%emt 0:00:35]} 25. d6 {[%emt 0:02:13]} Qxg3 {[%emt 0:00:31]} 26. hxg3 {[%emt 0:00:05]} Nd7 {[%emt 0:01:58]} 27. bxc5 {[%emt 0:02:06]} Ne5 {[%emt 0:04:08]} 28. Rcd4 {[%emt 0:00:27]} Nxf3 {[%emt 0:09:18]} 29. d7+ {[%emt 0:00:37]} Rxd7 {[%emt 0:00:06]} 30. Rxd7 {[%emt 0:00:06]} Ne5 {[%emt 0:04:27]} 31. c6 {[%emt 0:00:11]} bxc6 {[%emt 0:00:11]} 32. Ra7 {[%emt 0:00:19]} Kb8 {[%emt 0:00:34]} 33. Rxa6 {[%emt 0:00:07]} Kb7 {[%emt 0:00:35]} 34. Ra4 {[%emt 0:04:14]} h5 {[%emt 0:02:46]} 35. Rb1+ {[%emt 0:07:18]} Kc7 {[%emt 0:00:07]} 36. Ra7+ {[%emt 0:00:08]} Kd6 {[%emt 0:00:06]} 37. Rd1+ {[%emt 0:01:44]} Ke6 {[%emt 0:00:49]} 38. a4 {[%emt 0:00:08]} Rc8 {[%emt 0:06:01]} 39. a5 {[%emt 0:00:46]} c5 {[%emt 0:00:43]} 40. a6 {[%emt 0:01:35]} c4 {[%emt 0:00:21]} 41. Rb7 {[%emt 0:00:54]} Nd3 {[%emt 0:00:15]} 42. a7 {[%emt 0:01:49]} c3 {[%emt 0:00:15]} 43. Rb8 {[%emt 0:00:51]} c2 {[%emt 0:00:07]} 44. Re1+ {[%emt 0:01:40]} 1-0